bitfinex/quotes_BTCUSD_20240906
["timestamp","ask_amount","ask_price","bid_price","bid_amount"]
[1725600786392,0.20534911,56559.0,56558.0,0.04992935]
[1725600786602,0.55896211,56559.0,56558.0,0.02363]
[1725600786819,0.20534911,56559.0,56558.0,0.04992935]
[1725600787068,0.20534911,56559.0,56558.0,0.02363]
[1725600787744,0.20534911,56559.0,56558.0,0.01463]
[1725600787971,0.20534911,56559.0,56558.0,0.02663]
[1725600788183,0.55896211,56559.0,56558.0,0.02663]
[1725600788596,0.20534911,56559.0,56558.0,0.02663]
[1725600789015,0.55896211,56559.0,56558.0,0.02663]
[1725600789271,0.20534911,56559.0,56558.0,0.02663]
[1725600789928,0.55896211,56559.0,56558.0,0.02663]
[1725600791329,0.884848,56559.0,56558.0,0.02663]
[1725600791554,1.238461,56559.0,56558.0,0.02663]
[1725600793022,0.884848,56559.0,56558.0,0.02663]
[1725600793253,0.000816,56559.0,56558.0,0.02663]
[1725600793497,0.000816,56559.0,56558.0,0.763658]
[1725600793729,0.000816,56559.0,56558.0,1.117277]
[1725600793963,0.000816,56559.0,56558.0,1.14357635]
[1725600794684,0.02854121,56559.0,56558.0,1.14357635]
[1725600795621,0.000816,56559.0,56558.0,1.14357635]
[1725600796326,0.000816,56559.0,56558.0,1.15357635]
[1725600796578,0.000816,56559.0,56558.0,1.17657635]
[1725600796782,0.000816,56559.0,56558.0,1.53019535]
[1725600798295,0.000816,56559.0,56558.0,0.43633835]
[1725600798533,0.000816,56559.0,56558.0,0.05292935]
[1725600801185,0.000816,56559.0,56558.0,0.16872935]
[1725600801632,0.000816,56559.0,56558.0,0.34553835]
[1725600801876,0.99396949,56560.0,56559.0,0.0908]
[1725600802325,0.99396949,56560.0,56559.0,0.11748354]
[1725600802943,0.99396949,56560.0,56559.0,0.29428954]
[1725600803404,0.99396949,56560.0,56559.0,0.11748354]
[1725600803626,0.99396949,56560.0,56559.0,1.02351554]
[1725600803841,0.99396949,56560.0,56559.0,1.04651554]
[1725600804272,0.99396949,56560.0,56559.0,1.05751554]
[1725600805250,0.99396949,56560.0,56559.0,1.03451554]
[1725600805464,0.99396949,56560.0,56559.0,1.04851554]
[1725600805676,0.99396949,56560.0,56559.0,1.08151554]
[1725600806312,1.02169305,56560.0,56559.0,1.08151554]
[1725600806523,1.02250905,56560.0,56559.0,1.08151554]
[1725600807425,0.99478549,56560.0,56559.0,1.08151554]
[1725600810400,0.99478549,56560.0,56559.0,1.43512854]
[1725600810791,0.99478549,56560.0,56559.0,1.43612854]
[1725600811081,1.02250848,56560.0,56559.0,1.43612854]
[1725600811499,0.99478549,56560.0,56559.0,1.43612854]
[1725600815743,0.99478549,56560.0,56559.0,2.68762854]
[1725600815949,1.0225077,56560.0,56559.0,2.68762854]
[1725600818293,1.0225077,56560.0,56559.0,2.33301554]
[1725600819395,0.99478549,56560.0,56559.0,2.33301554]
[1725600820664,0.99478549,56560.0,56559.0,1.88860254]
[1725600821716,0.99478549,56560.0,56559.0,0.63710254]
[1725600821922,0.99478549,56560.0,56559.0,0.99071554]
[1725600822351,1.02250827,56560.0,56559.0,0.99071554]
[1725600823628,0.76580566,56560.0,56559.0,0.99071554]
[1725600826431,0.76580566,56560.0,56559.0,0.97071554]
[1725600826894,0.76580566,56560.0,56559.0,0.59410254]
[1725600827134,0.76580566,56560.0,56559.0,0.06368354]
[1725600827370,0.76580566,56560.0,56559.0,0.24048954]
[1725600827829,0.76580566,56560.0,56559.0,0.59410254]
[1725600829386,0.73808288,56560.0,56559.0,0.59410254]
[1725600830601,0.73808288,56560.0,56559.0,0.94771554]
[1725600830804,0.73808288,56560.0,56559.0,0.59410254]
[1725600831051,0.73808288,56560.0,56559.0,0.68120254]
[1725600831744,0.73808288,56560.0,56559.0,0.68283454]
[1725600832382,0.73808288,56560.0,56559.0,0.59573454]
[1725600832539,0.76580627,56560.0,56559.0,0.59573454]
[1725600834404,0.76580627,56560.0,56559.0,0.94934754]
[1725600835557,0.76580627,56560.0,56559.0,0.95034754]
[1725600835739,0.76580627,56560.0,56559.0,0.94934754]
[1725600835936,0.76580627,56560.0,56559.0,0.59573454]
[1725600836395,0.76580627,56560.0,56559.0,0.94934754]
[1725600837349,0.76580627,56560.0,56559.0,0.59573454]
[1725600838420,0.76580627,56560.0,56559.0,0.94934754]
[1725600838640,0.76580627,56560.0,56559.0,0.59573454]
[1725600840217,0.73808288,56560.0,56559.0,0.59573454]
[1725600840677,0.73808288,56560.0,56559.0,0.96934754]
[1725600840901,0.73808288,56560.0,56559.0,0.99234754]
[1725600843209,0.73808288,56560.0,56559.0,1.34596054]
[1725600843415,0.76580569,56560.0,56559.0,1.34596054]
[1725600843634,0.76580569,56560.0,56559.0,1.34696054]
[1725600843838,0.76580569,56560.0,56559.0,1.55386054]
[1725600844048,0.76580569,56560.0,56559.0,1.19924754]
[1725600844686,0.76580569,56560.0,56559.0,1.55286054]
[1725600844905,0.76580569,56560.0,56559.0,1.19924754]
[1725600845159,0.76580569,56560.0,56559.0,1.55286054]
[1725600846211,0.76580569,56560.0,56559.0,1.19924754]
[1725600846716,0.76580569,56560.0,56559.0,1.55386054]
[1725600846957,0.50467722,56560.0,56559.0,1.55386054]
[1725600848255,0.50467722,56560.0,56559.0,1.08414754]
[1725600848461,0.50467722,56560.0,56559.0,0.97234754]
[1725600848723,0.50467722,56560.0,56559.0,0.98234754]
[1725600848981,0.50467722,56560.0,56559.0,0.99234754]
[1725600849575,0.47695441,56560.0,56559.0,1.10324754]
[1725600851446,0.47695441,56560.0,56559.0,1.45686054]
[1725600852642,0.47695441,56560.0,56559.0,1.53655858]
[1725600852912,0.50467661,56560.0,56559.0,1.53655858]
[1725600853163,0.50467661,56560.0,56559.0,0.25512154]
[1725600853402,0.59207661,56560.0,56559.0,0.61873454]
[1725600853638,0.59207661,56560.0,56559.0,0.26512154]
[1725600854388,0.56435441,56560.0,56559.0,0.61873454]
[1725600854818,0.56435441,56560.0,56559.0,0.26512154]
[1725600855027,0.56435441,56560.0,56559.0,0.07831554]
[1725600855233,0.56435441,56560.0,56559.0,0.08831554]
[1725600855451,0.56435441,56560.0,56559.0,0.26512154]
[1725600855893,0.59207814,56560.0,56559.0,0.26512154]
[1725600856108,0.59207814,56560.0,56559.0,0.06531554]
[1725600856972,0.59207814,56560.0,56559.0,0.05531554]
[1725600856973,0.76888114,56560.0,56559.0,0.05531554]
[1725600858045,0.59207814,56560.0,56559.0,0.05531554]
[1725600859517,0.56435441,56560.0,56559.0,0.05531554]
[1725600860837,0.56435441,56560.0,56559.0,0.23212154]
[1725600861107,0.47695441,56560.0,56559.0,0.23212154]
[1725600861321,0.47695441,56560.0,56559.0,0.58573454]
[1725600861747,0.47695441,56560.0,56559.0,1.06844754]
[1725600863664,0.47695441,56560.0,56559.0,0.97234754]
[1725600865142,0.47695441,56560.0,56559.0,1.6622246]
[1725600865881,0.50467589,56560.0,56559.0,1.6622246]
[1725600868020,0.47695441,56560.0,56559.0,1.6622246]
[1725600868520,0.47695441,56560.0,56559.0,1.55596054]
[1725600868746,0.47695441,56560.0,56559.0,1.66217091]
[1725600869682,0.47695441,56560.0,56559.0,1.55596054]
[1725600869911,0.47695441,56560.0,56559.0,2.91367091]
[1725600870374,0.47695441,56560.0,56559.0,2.80746054]
[1725600871056,0.47695441,56560.0,56559.0,2.88710918]
[1725600871803,0.27706616,56560.0,56559.0,3.26728391]
[1725600872032,0.27706616,56560.0,56559.0,3.28316739]
[1725600872495,0.27706616,56560.0,56559.0,3.38934842]
[1725600872743,0.27706616,56560.0,56559.0,3.26725457]
[1725600872994,0.27706616,56560.0,56559.0,3.14607354]
[1725600873248,0.27706616,56560.0,56559.0,3.14807354]
[1725600873475,0.27706616,56560.0,56559.0,3.13407354]
[1725600873718,0.27706616,56560.0,56559.0,3.16107354]
[1725600873905,0.27706616,56560.0,56559.0,3.14707354]
[1725600874171,0.27706616,56560.0,56559.0,3.13407354]
[1725600874430,0.27706616,56560.0,56559.0,3.16207354]
[1725600876467,0.30478605,56560.0,56559.0,3.16207354]
[1725600877707,0.30478605,56560.0,56559.0,3.24167944]
[1725600879474,0.27706616,56560.0,56559.0,3.24167944]
[1725600880593,0.01612017,56560.0,56559.0,3.24167944]
[1725600881649,0.000818,56565.0,56564.0,1.830114]
[1725600881856,0.000818,56565.0,56564.0,1.853114]
[1725600882058,0.000818,56565.0,56564.0,1.97796634]
[1725600882266,0.000818,56565.0,56564.0,2.17964541]
[1725600882468,0.000818,56565.0,56564.0,2.20616727]
[1725600882676,0.01905446,56566.0,56565.0,1.476512]
[1725600882882,0.00082,56567.0,56566.0,0.451294]
[1725600883103,0.00082,56567.0,56566.0,1.635001]
[1725600883321,0.00082,56567.0,56566.0,2.01341555]
[1725600883525,0.00082,56567.0,56566.0,2.49952328]
[1725600884142,0.00082,56567.0,56566.0,3.63248455]
[1725600884349,0.00082,56567.0,56566.0,3.64648455]
[1725600884558,0.00082,56567.0,56566.0,3.63248455]
[1725600885838,0.00082,56567.0,56566.0,3.64648455]
[1725600886447,0.00082,56567.0,56566.0,3.6670782]
[1725600888796,0.00082,56567.0,56566.0,3.39535474]
[1725600889007,0.00082,56567.0,56566.0,3.05903405]
[1725600890365,0.00082,56567.0,56566.0,3.48852393]
[1725600890606,0.00082,56567.0,56566.0,3.43560305]
[1725600891456,0.00082,56567.0,56566.0,3.43723505]
[1725600892278,0.00082,56567.0,56566.0,3.08366605]
[1725600892454,0.00082,56567.0,56566.0,3.43723505]
[1725600892864,0.00025644,56567.0,56566.0,3.51659909]
[1725600893072,0.00025644,56567.0,56566.0,3.00542624]
[1725600893302,0.00025644,56567.0,56566.0,3.12752009]
[1725600895638,0.00025644,56567.0,56566.0,1.07076359]
[1725600895894,0.27243744,56567.0,56566.0,0.05447755]
[1725600896121,0.74270044,56567.0,56566.0,0.05447755]
[1725600896556,0.74270044,56567.0,56566.0,0.029632]
[1725600896767,1.09626344,56567.0,56566.0,0.03902196]
[1725600896984,1.12398394,56567.0,56566.0,0.029632]
[1725600897433,1.12498394,56567.0,56566.0,0.015632]
[1725600897645,1.12498394,56567.0,56566.0,0.014632]
[1725600897860,1.12498394,56567.0,56566.0,0.001632]
[1725600898073,1.47854694,56567.0,56566.0,0.001632]
[1725600899177,1.47854694,56567.0,56566.0,0.015632]
[1725600899384,1.83210994,56567.0,56566.0,0.028632]
[1725600899646,1.83210994,56567.0,56566.0,0.001632]
[1725600899887,1.83210994,56567.0,56566.0,0.017632]
[1725600900549,1.83210994,56567.0,56566.0,0.009632]
[1725600900754,1.83210994,56567.0,56566.0,0.001632]
[1725600901169,1.83310994,56567.0,56566.0,0.002632]
[1725600901388,1.804327,56560.0,56559.0,0.001632]
[1725600901612,1.904327,56560.0,56559.0,0.001632]
[1725600901823,2.257933,56560.0,56559.0,0.001632]
[1725600902248,2.28566219,56560.0,56559.0,0.001632]
[1725600903728,2.28566219,56560.0,56559.0,0.002632]
[1725600903954,0.0396,56558.0,56553.0,0.00163]
[1725600904168,0.334122,56554.0,56553.0,0.00163]
[1725600904381,1.495054,56554.0,56553.0,0.00163]
[1725600904584,1.848698,56554.0,56553.0,0.00163]
[1725600904768,2.202342,56554.0,56553.0,0.00163]
[1725600905002,2.23007579,56554.0,56553.0,0.00163]
[1725600905981,2.58371979,56554.0,56553.0,0.00163]
[1725600906067,0.177865,56540.0,56539.0,0.4672]
[1725600906273,0.88439,56536.0,56535.0,1.2515]
[1725600906479,1.334546,56536.0,56535.0,1.2515]
[1725600906898,1.36228295,56536.0,56535.0,1.2515]
[1725600908235,1.00852695,56536.0,56535.0,1.2615]
[1725600908664,1.00852695,56536.0,56535.0,1.2990656]
[1725600909103,1.00952695,56536.0,56535.0,1.3090656]
[1725600909555,1.00852695,56536.0,56535.0,1.2890656]
[1725600909818,0.02873695,56536.0,56535.0,1.4879466]
[1725600910033,0.02873695,56536.0,56535.0,1.5319466]
[1725600910251,0.001,56536.0,56535.0,1.8857096]
[1725600910456,0.002,56536.0,56535.0,1.8967096]
[1725600910667,0.002,56536.0,56535.0,2.0983096]
[1725600910883,0.272542,56548.0,56543.0,0.01]
[1725600911167,0.176836,56550.0,56544.0,0.32608957]
[1725600911386,0.176826,56553.0,56546.0,0.009]
[1725600911600,0.0957,56561.0,56550.0,0.009]
[1725600911821,0.353618,56559.0,56550.0,0.185834]
[1725600912035,0.12342922,56561.0,56553.0,0.176824]
[1725600912036,0.47703322,56561.0,56553.0,0.176824]
[1725600912258,0.47703322,56561.0,56554.0,0.29405694]
[1725600912259,0.02772922,56561.0,56554.0,0.29405694]
[1725600912500,0.176808,56559.0,56554.0,0.15469387]
[1725600912716,0.17681,56558.0,56554.0,0.15115793]
[1725600913669,0.176806,56559.0,56554.0,0.16515793]
[1725600914078,0.353613,56559.0,56554.0,0.03745793]
[1725600914311,0.176815,56556.0,56554.0,0.06545793]
[1725600914544,0.176815,56556.0,56554.0,0.05145793]
[1725600915024,0.176814,56557.0,56554.0,0.06545793]
[1725600915277,0.176814,56557.0,56554.0,0.06708993]
[1725600915968,0.176809,56558.0,56554.0,0.06708993]
[1725600916217,0.176809,56558.0,56554.0,0.05308993]
[1725600916438,0.176807,56559.0,56554.0,0.22990993]
[1725600916858,0.176807,56559.0,56555.0,0.176819]
[1725600917080,0.17681,56558.0,56554.0,0.22991193]
[1725600917302,0.17681,56558.0,56556.0,0.0374466]
[1725600917551,0.17681,56558.0,56555.0,0.21427026]
[1725600917779,0.176809,56558.0,56557.0,0.03744093]
[1725600918004,0.176809,56558.0,56556.0,0.0374466]
[1725600918232,0.176809,56558.0,56557.0,0.03744093]
[1725600918457,0.176809,56558.0,56554.0,0.192453]
[1725600918684,0.176809,56558.0,56557.0,0.03744093]
[1725600918976,0.176809,56558.0,56555.0,0.176818]
[1725600919198,0.176809,56558.0,56557.0,0.03744093]
[1725600919414,0.176809,56558.0,56556.0,0.0514466]
[1725600919644,0.176809,56558.0,56557.0,0.03744093]
[1725600920122,0.530428,56558.0,56557.0,0.014]
[1725600920352,0.30250122,56558.0,56557.0,0.05144093]
[1725600920581,0.19330122,56558.0,56556.0,0.014]
[1725600920808,0.176807,56559.0,56557.0,0.03744093]
[1725600921033,0.01649249,56558.0,56557.0,0.03744093]
[1725600921270,0.176805,56560.0,56557.0,0.05144093]
[1725600921561,0.02772922,56561.0,56560.0,0.530409]
[1725600921790,0.02772922,56561.0,56560.0,0.907015]
[1725600922015,0.02772922,56561.0,56560.0,0.59083294]
[1725600922730,0.02772922,56561.0,56560.0,0.94443894]
[1725600923564,0.02772922,56561.0,56560.0,0.59083294]
[1725600923814,0.353554,56569.0,56560.0,0.41402994]
[1725600924000,0.01649542,56568.0,56561.0,0.023]
[1725600924204,0.01649542,56567.0,56561.0,0.023]
[1725600924410,0.19328042,56566.0,56563.0,0.176793]
[1725600924617,0.01649542,56565.0,56564.0,0.17679]
[1725600924818,0.01649542,56565.0,56564.0,0.21419129]
[1725600925951,0.558444,56571.0,56564.0,0.21419129]
[1725600926156,0.176779,56568.0,56564.0,0.21419129]
[1725600926335,0.01649561,56567.0,56564.0,0.21419129]
[1725600926596,0.01649561,56566.0,56564.0,0.21419129]
[1725600926799,0.01649561,56565.0,56564.0,0.21419129]
[1725600927217,0.01649561,56565.0,56564.0,0.21519129]
[1725600927426,0.01649561,56565.0,56564.0,0.57177229]
[1725600927643,0.01649561,56565.0,56564.0,0.56877229]
[1725600928097,0.01649561,56565.0,56564.0,0.57577229]
[1725600928316,0.01731161,56565.0,56564.0,0.57577229]
[1725600928736,0.01731161,56565.0,56564.0,0.22219129]
[1725600928982,0.000816,56565.0,56564.0,0.22219129]
[1725600929233,0.000816,56565.0,56564.0,0.57477229]
[1725600929458,0.000816,56565.0,56564.0,0.58177229]
[1725600929668,0.01730841,56565.0,56564.0,0.58177229]
[1725600930731,0.0173096,56565.0,56564.0,0.58177229]
[1725600930938,0.0173096,56565.0,56564.0,0.93535329]
[1725600931146,0.0173096,56565.0,56564.0,0.95835329]
[1725600931583,0.0173096,56565.0,56564.0,0.93713088]
[1725600931854,0.01731068,56565.0,56564.0,0.93713088]
[1725600932740,0.01731069,56565.0,56564.0,1.29971188]
[1725600932956,0.000816,56565.0,56564.0,1.50401188]
[1725600933211,0.0285363,56565.0,56564.0,1.50401188]
[1725600933780,0.0285363,56565.0,56564.0,1.49701188]
[1725600934181,0.0285363,56565.0,56564.0,1.50401188]
[1725600934608,0.0285363,56565.0,56564.0,1.51801188]
[1725600935548,0.0285363,56565.0,56564.0,1.50401188]
[1725600935941,0.0285363,56565.0,56564.0,1.50901188]
[1725600936153,0.0285363,56565.0,56564.0,1.51801188]
[1725600936779,0.0285363,56565.0,56564.0,1.50401188]
[1725600936984,0.0285363,56565.0,56564.0,1.49001188]
[1725600937193,0.0285363,56565.0,56564.0,1.50401188]
[1725600937409,0.04503321,56565.0,56564.0,1.51901188]
[1725600937617,0.0285363,56565.0,56564.0,1.51901188]
[1725600937822,0.0285363,56565.0,56564.0,1.51801188]
[1725600938264,0.04503498,56565.0,56564.0,0.04417888]
[1725600938480,0.66299698,56565.0,56564.0,0.04417888]
[1725600938694,1.01657198,56565.0,56564.0,0.03017888]
[1725600938911,1.37014698,56565.0,56564.0,0.03017888]
[1725600939135,1.0010733,56565.0,56564.0,0.028]
[1725600939334,1.01756955,56565.0,56564.0,0.028]
[1725600939551,0.176799,56562.0,56560.0,0.01]
[1725600939779,0.01649625,56561.0,56560.0,0.01]
[1725600940212,0.01649625,56561.0,56559.0,0.176805]
[1725600940436,0.01649625,56560.0,56559.0,0.176805]
[1725600940692,0.19329925,56560.0,56555.0,0.01]
[1725600940926,0.01649625,56559.0,56556.0,0.199815]
[1725600941146,0.01649625,56558.0,56557.0,0.176812]
[1725600941580,0.01649625,56558.0,56556.0,0.023]
[1725600941790,0.176803,56561.0,56557.0,0.176812]
[1725600942027,0.354591,56563.0,56558.0,0.176808]
[1725600942028,0.29370714,56563.0,56558.0,0.176808]
[1725600942254,0.176798,56562.0,56558.0,0.176808]
[1725600942925,0.176798,56562.0,56559.0,0.204806]
[1725600943136,0.176794,56563.0,56559.0,0.014]
[1725600943374,0.176794,56563.0,56559.0,0.176805]
[1725600944089,0.176797,56562.0,56558.0,0.204809]
[1725600944323,0.176794,56563.0,56559.0,0.176804]
[1725600944588,0.176794,56563.0,56559.0,0.190804]
[1725600944589,0.20451722,56563.0,56559.0,0.190804]
[1725600944793,0.02772322,56563.0,56560.0,0.176802]
[1725600945690,0.20451722,56563.0,56560.0,0.176802]
[1725600945903,0.20451722,56563.0,56561.0,0.176799]
[1725600945904,0.02772322,56563.0,56561.0,0.176799]
[1725600946120,0.176791,56564.0,56561.0,0.176799]
[1725600946538,0.02772296,56563.0,56561.0,0.176799]
[1725600947412,0.02772296,56563.0,56561.0,0.190799]
[1725600947635,0.02772296,56563.0,56561.0,0.176799]
[1725600947861,0.02772296,56563.0,56561.0,0.190799]
[1725600948360,0.02772296,56563.0,56561.0,0.014]
[1725600948573,0.176797,56562.0,56561.0,0.014]
[1725600949001,0.176797,56562.0,56561.0,0.028]
[1725600949002,0.354594,56562.0,56561.0,0.028]
[1725600949214,1.096985,56562.0,56561.0,0.028]
[1725600949424,1.095985,56562.0,56561.0,0.028]
[1725600949841,1.095985,56562.0,56554.0,0.001632]
[1725600949842,0.176807,56559.0,56555.0,0.176818]
[1725600950254,0.176807,56559.0,56556.0,0.01619317]
[1725600951076,0.176802,56561.0,56556.0,0.19300817]
[1725600951283,0.176802,56561.0,56557.0,0.176812]
[1725600951714,0.176802,56561.0,56558.0,0.0161896]
[1725600952171,0.176802,56561.0,56557.0,0.176811]
[1725600952408,0.176802,56561.0,56559.0,0.01618781]
[1725600952620,0.176802,56561.0,56558.0,0.0161896]
[1725600952834,0.176798,56562.0,56560.0,0.01618602]
[1725600953040,0.176794,56563.0,56559.0,0.19299281]
[1725600953253,0.176794,56563.0,56561.0,0.01618424]
[1725600953463,0.176794,56563.0,56560.0,0.01618602]
[1725600953642,0.176794,56563.0,56562.0,0.01618245]
[1725600953878,0.176794,56563.0,56561.0,0.01618424]
[1725600954085,0.176794,56563.0,56559.0,0.176805]
[1725600954296,0.19329098,56562.0,56559.0,0.186805]
[1725600954503,0.01649398,56561.0,56559.0,0.186805]
[1725600954706,0.01649398,56560.0,56559.0,0.176805]
[1725600955129,0.01649398,56560.0,56559.0,0.884031]
[1725600955337,0.01649398,56560.0,56559.0,1.009031]
[1725600955542,0.01649398,56560.0,56559.0,1.000031]
[1725600955794,0.02772326,56560.0,56559.0,1.000031]
[1725600956034,0.044217,56560.0,56559.0,1.014031]
[1725600956248,0.02772326,56560.0,56559.0,1.014031]
[1725600956914,0.04421801,56560.0,56559.0,1.028031]
[1725600957155,0.04421841,56560.0,56559.0,1.497944]
[1725600957343,0.04421841,56560.0,56559.0,1.507944]
[1725600957599,0.04421841,56560.0,56559.0,1.508944]
[1725600957804,0.04421841,56560.0,56559.0,1.528944]
[1725600957805,0.02772326,56560.0,56559.0,1.528944]
[1725600958231,0.35344,56587.0,56567.0,0.2093]
[1725600958458,0.176759,56575.0,56570.0,0.353543]
[1725600958672,0.01649815,56574.0,56571.0,0.176768]
[1725600958881,0.01649815,56573.0,56571.0,0.176768]
[1725600959091,0.01649815,56572.0,56571.0,0.176768]
[1725600959527,0.01649815,56572.0,56570.0,0.176771]
[1725600959736,0.01649815,56571.0,56570.0,0.176771]
[1725600960573,0.01649815,56571.0,56566.0,0.353564]
[1725600960782,0.02771939,56582.0,56561.0,0.572898]
[1725600960783,0.353558,56568.0,56561.0,0.2093]
[1725600960993,0.176785,56566.0,56562.0,0.176795]
[1725600961200,0.01649815,56565.0,56562.0,0.176795]
[1725600961379,0.353558,56568.0,56562.0,0.176797]
[1725600961380,0.01649815,56564.0,56562.0,0.176797]
[1725600961583,0.01649815,56563.0,56562.0,0.530391]
[1725600961991,0.01649815,56563.0,56553.0,0.001]
[1725600961992,0.01649815,56563.0,56556.0,1.4608]
[1725600962209,0.176819,56555.0,56554.0,0.001632]
[1725600962423,0.90059315,56555.0,56554.0,0.001632]
[1725600962843,1.25423115,56555.0,56554.0,0.001632]
[1725600963049,1.46293115,56555.0,56554.0,0.001632]
[1725600963564,1.81656915,56555.0,56554.0,0.001632]
[1725600964200,1.81656915,56555.0,56554.0,0.013632]
[1725600964408,1.84430014,56555.0,56554.0,0.013632]
[1725600964613,1.84430014,56555.0,56554.0,0.001632]
[1725600964836,2.22780199,56555.0,56554.0,0.001632]
[1725600965047,2.24428978,56555.0,56554.0,0.001632]
[1725600965475,2.2442898,56555.0,56554.0,0.013632]
[1725600965905,2.2442898,56555.0,56554.0,0.001632]
[1725600966124,2.2452898,56555.0,56554.0,0.001632]
[1725600966343,2.2482898,56555.0,56554.0,0.001632]
[1725600966761,2.2452898,56555.0,56554.0,0.001632]
[1725600968126,1.8916518,56555.0,56554.0,0.001632]
[1725600969111,1.87516399,56555.0,56554.0,0.001632]
[1725600969394,1.87416399,56555.0,56554.0,0.001632]
[1725600969551,1.89065074,56555.0,56554.0,0.001632]
[1725600969754,1.89065074,56555.0,56554.0,0.002632]
[1725600970426,1.9906506,56555.0,56554.0,0.003632]
[1725600970743,1.99065039,56555.0,56554.0,0.003632]
[1725600971531,1.59065039,56555.0,56554.0,0.003632]
[1725600972401,1.57416399,56555.0,56554.0,0.003632]
[1725600972550,1.59065082,56555.0,56554.0,0.003632]
[1725600973806,1.66158982,56555.0,56554.0,0.003632]
[1725600974559,1.69158982,56555.0,56554.0,0.003632]
[1725600975416,0.42197582,56555.0,56554.0,0.003632]
[1725600975589,0.32197582,56555.0,56554.0,0.003632]
[1725600975788,0.64788283,56555.0,56554.0,0.003632]
[1725600976035,0.95831046,56555.0,56554.0,0.003632]
[1725600976222,0.94182363,56555.0,56554.0,0.01982874]
[1725600976396,0.57467389,56555.0,56554.0,0.003632]
[1725600976801,0.57467389,56555.0,56554.0,0.01982874]
[1725600977157,0.57467395,56555.0,56554.0,0.01982874]
[1725600977365,0.92831195,56555.0,56554.0,0.01982874]
[1725600977545,0.57467395,56555.0,56554.0,0.003632]
[1725600978164,0.55818563,56555.0,56554.0,0.003632]
[1725600978368,0.57467346,56555.0,56554.0,0.003632]
[1725600978845,0.57467392,56555.0,56554.0,0.003632]
[1725600979076,0.57467392,56555.0,56554.0,0.01982874]
[1725600979316,0.22103592,56555.0,56554.0,0.01982874]
[1725600979554,0.54694529,56555.0,56554.0,0.01982874]
[1725600979800,0.19330729,56555.0,56554.0,0.01982874]
[1725600980043,0.54694529,56555.0,56554.0,0.01982874]
[1725600981705,0.530457,56555.0,56554.0,0.01982874]
[1725600981924,0.54694578,56555.0,56554.0,0.01982874]
[1725600982660,0.01648878,56555.0,56554.0,0.31695074]
[1725600982886,0.04421763,56555.0,56554.0,1.11933874]
[1725600983101,0.01648878,56555.0,56554.0,1.11933874]
[1725600983331,0.04421494,56555.0,56554.0,1.11933874]
[1725600983542,0.04421494,56555.0,56554.0,1.11733874]
[1725600983960,0.04421494,56555.0,56554.0,1.13433874]
[1725600984172,0.01648878,56555.0,56554.0,1.12633874]
[1725600984411,0.01648878,56555.0,56554.0,1.11733874]
[1725600984872,0.01648878,56555.0,56554.0,1.13133874]
[1725600986007,0.01648878,56555.0,56554.0,1.11733874]
[1725600986767,0.01648878,56555.0,56554.0,1.13133874]
[1725600986996,0.01648878,56555.0,56554.0,1.14533874]
[1725600987221,0.01648878,56555.0,56554.0,1.13133874]
[1725600987714,0.01648878,56555.0,56554.0,1.15433874]
[1725600987941,0.01648878,56555.0,56554.0,1.50798274]
[1725600988173,0.02772593,56556.0,56555.0,0.530457]
[1725600988419,0.0442224,56556.0,56555.0,1.126595]
[1725600988641,0.0442224,56556.0,56555.0,1.14278996]
[1725600989116,0.0442224,56556.0,56555.0,1.49642796]
[1725600989346,0.0442224,56556.0,56555.0,1.14278996]
[1725600989593,0.01649647,56556.0,56555.0,1.15678996]
[1725600989816,0.01649647,56556.0,56555.0,1.51042796]
[1725600990309,0.01749647,56556.0,56555.0,1.17078996]
[1725600990765,0.19431147,56556.0,56555.0,0.04419496]
[1725600991002,0.01749647,56556.0,56555.0,0.04419496]
[1725600991482,0.90157347,56556.0,56555.0,0.04419496]
[1725600991704,0.54794247,56556.0,56555.0,0.04419496]
[1725600991927,0.531446,56556.0,56555.0,0.04419496]
[1725600992153,0.90157092,56556.0,56555.0,0.04419496]
[1725600992641,0.90157092,56556.0,56555.0,0.028]
[1725600993409,0.54793992,56556.0,56555.0,0.028]
[1725600994039,0.90157092,56556.0,56555.0,0.028]
[1725600994251,0.54793992,56556.0,56555.0,0.028]
[1725600994653,0.90157092,56556.0,56555.0,0.028]
[1725600995687,0.54793992,56556.0,56555.0,0.028]
[1725600996930,0.90157092,56556.0,56555.0,0.028]
[1725600997575,0.54793807,56556.0,56555.0,0.028]
[1725600997784,0.90156907,56556.0,56555.0,0.028]
[1725600998234,0.54793807,56556.0,56555.0,0.028]
[1725600998862,0.01749207,56556.0,56555.0,0.029632]
[1725600999098,0.01749207,56556.0,56555.0,0.776989]
[1725600999308,0.01749207,56556.0,56555.0,1.130627]
[1725600999309,0.01749084,56556.0,56555.0,1.130627]
[1725600999544,0.01749084,56556.0,56555.0,1.14682196]
[1725600999740,0.01749045,56556.0,56555.0,0.79318396]
[1725601000528,0.01749045,56556.0,56555.0,0.43954596]
[1725601000765,0.01749045,56556.0,56555.0,0.79318396]
[1725601000958,0.01749045,56556.0,56555.0,1.14682196]
[1725601002787,0.04521626,56556.0,56555.0,1.52345996]
[1725601002987,0.01749045,56556.0,56555.0,1.52345996]
[1725601009108,0.001,56556.0,56555.0,1.52345996]
[1725601009323,0.01749318,56556.0,56555.0,1.52345996]
[1725601017556,0.19430818,56556.0,56555.0,0.04582696]
[1725601018006,0.54793918,56556.0,56555.0,0.04582696]
[1725601018435,0.19430818,56556.0,56555.0,0.04582696]
[1725601018644,0.531446,56556.0,56555.0,0.04582696]
[1725601019058,0.54794404,56556.0,56555.0,0.04582696]
[1725601019264,0.54794389,56556.0,56555.0,0.04582696]
[1725601020536,0.90157489,56556.0,56555.0,0.04582696]
[1725601020751,0.9015736,56556.0,56555.0,0.04582696]
[1725601021186,0.885077,56556.0,56555.0,0.04582696]
[1725601021393,0.90157355,56556.0,56555.0,0.04582696]
[1725601021798,0.54794255,56556.0,56555.0,0.04582696]
[1725601024421,0.54794219,56556.0,56555.0,0.04582696]
[1725601025758,0.01749619,56556.0,56555.0,0.78278396]
[1725601026373,0.01749619,56556.0,56555.0,1.13642196]
[1725601026579,0.01749619,56556.0,56555.0,1.51305996]
[1725601026783,0.04522238,56556.0,56555.0,1.51305996]
[1725601027597,0.02872619,56556.0,56555.0,1.51305996]
[1725601027804,0.04522574,56556.0,56555.0,1.51305996]
[1725601028442,0.04522571,56556.0,56555.0,1.51305996]
[1725601029460,0.01749952,56556.0,56555.0,1.51305996]
[1725601030295,0.01749952,56556.0,56555.0,1.51505996]
[1725601030902,0.01749952,56556.0,56555.0,1.52505996]
[1725601032641,0.001,56556.0,56555.0,1.52505996]